fUSD/lending_fUSD_20260405
["ID","MTS","AMOUNT","RATE_DAILY","PERIOD"]
[419793197,1775382649787,-339.79133416,0.00013699,2]
[419793198,1775382649798,-500.0,0.00013699,2]
[419793199,1775382649808,-500.0,0.00013699,2]
[419793200,1775382649817,-500.0,0.00013699,2]
[419793201,1775382649828,-500.0,0.00013699,2]
[419793202,1775382649837,-500.0,0.00013699,2]
[419793203,1775382649846,-598.99606082,0.00013699,2]
[419793204,1775382649855,-168.69935806,0.00013699,2]
[419793205,1775382649864,-518.73332026,0.00013699,2]
[419793206,1775382649874,-500.0,0.00013699,2]
[419793207,1775382649883,-500.0,0.00013699,2]
[419793208,1775382649892,-500.0,0.00013699,2]
[419793209,1775382649901,-500.0,0.00013699,2]
[419793210,1775382649910,-500.0,0.00013699,2]
[419793211,1775382649920,-164.79711181,0.00013699,2]
[419793212,1775382649929,-500.0,0.00013699,2]
[419793213,1775382649938,-385.86149772,0.00013699,2]
[419793214,1775382649947,-500.0,0.00013699,2]
[419793215,1775382649956,-519.03182682,0.00013699,2]
[419793216,1775382649965,-500.0,0.00013699,2]
[419793217,1775382649974,-500.0,0.00013699,2]
[419793218,1775382649983,-515.7358709,0.00013699,2]
[419793219,1775382649993,-210.98153295,0.00013699,2]
[419793220,1775382650003,-607.20051974,0.00013699,2]
[419793221,1775382650012,-202.64993829,0.00013699,2]
[419793222,1775382650021,-500.0,0.00013699,2]
[419793223,1775382650031,-500.0,0.00013699,2]
[419793224,1775382650040,-500.0,0.00013699,2]
[419793225,1775382650049,-160.7467095,0.00013699,2]
[419793226,1775382650058,-500.0,0.00013699,2]
[419793227,1775382650067,-500.50066882,0.00013699,2]
[419793228,1775382650076,-500.0,0.00013699,2]
[419793229,1775382650086,-500.0,0.00013699,2]
[419793230,1775382650097,-500.0,0.00013699,2]
[419793231,1775382650108,-500.0,0.00013699,2]
[419793232,1775382650119,-500.0,0.00013699,2]
[419793233,1775382650129,-569.20510167,0.00013699,2]
[419793234,1775382650140,-162.72924009,0.00013699,2]
[419793235,1775382650150,-198.65,0.00013699,2]
[419793236,1775382650161,-1000.0,0.00013699,2]
[419793237,1775382650171,-1001.03211684,0.00013699,15]
[419793238,1775382650180,-150.0,0.000137,2]
[419793239,1775382650190,-150.0,0.000137,2]
[419793240,1775382650199,-150.0,0.000137,2]
[419793241,1775382650208,-218.48382407,0.000137,2]
[419793242,1775382650218,-1651.81367706,0.00013711,2]
[419793243,1775382650227,-201.93286099,0.00013711,2]
[419793244,1775382650237,-200.0,0.00013711,2]
[419793245,1775382650246,-859.80605061,0.00013711,2]
[419793246,1775382650256,-168.61,0.00013767,2]
[419793247,1775382650265,-166.66,0.00013788,2]
[419793248,1775382650275,-1000.0,0.000138,5]
[419793249,1775382650285,-1800.0,0.00013808,2]
[419793250,1775382650295,-7210.01239016,0.00013875,2]
[419793251,1775382650305,-150.0,0.00013973,2]
[419793252,1775382650316,-150.0,0.00013973,2]
[419793253,1775382650327,-150.0,0.00013973,2]
[419793254,1775382650337,-150.0,0.00013973,2]
[419793255,1775382650347,-150.0,0.00013973,2]
[419793256,1775382650358,-1253.32555579,0.00014006,2]
[419793257,1775382650368,-166.66,0.00014079,2]
[419793258,1775382650378,-500.0,0.00014115,2]
[419793259,1775382650388,-686.68,0.00014115,2]
[419793260,1775382650398,-500.0,0.00014115,2]
[419793261,1775382650407,-11422.25541393,0.00014115,2]
[419793262,1775382650416,-48056.14856536,0.00014234,2]
[419793263,1775382650425,-500.0,0.00014237,2]
[419793264,1775382650434,-600.0,0.00014242,2]
[419793265,1775382650443,-275.53,0.00014242,2]
[419793266,1775382650453,-500.0,0.00014246,2]
[419793267,1775382650462,-473.55148483,0.00014246,2]
[419793268,1775382650471,-921.54,0.00014246,2]
[419793269,1775382650480,-1647.17,0.00014246,2]
[419793270,1775382650490,-1289.11,0.00014246,2]
[419793271,1775382650499,-150.0,0.00014247,2]
[419793272,1775382650508,-150.0,0.00014247,2]
[419793273,1775382650517,-150.0,0.00014247,2]
[419793274,1775382650526,-150.0,0.00014247,2]
[419793275,1775382650536,-627.70930647,0.00014247,2]
[419793276,1775382650545,-1000.0,0.00014247,2]
[419793277,1775382650554,-1000.0,0.00014247,2]
[419793278,1775382650564,-1000.0,0.00014247,2]
[419793279,1775382650573,-308.03873246,0.00014247,2]
[419793280,1775382650582,-861.43877969,0.00014247,2]
[419793281,1775382650592,-1000.0,0.00014247,2]
[419793282,1775382650601,-1000.0,0.00014247,2]
[419793283,1775382650611,-1000.0,0.00014247,2]
[419793284,1775382650620,-1000.0,0.00014247,2]
[419793285,1775382650629,-730.09729929,0.00014247,2]
[419793286,1775382650639,-1000.0,0.00014247,2]
[419793287,1775382650649,-1000.0,0.00014247,2]
[419793288,1775382650660,-1000.0,0.00014247,2]
[419793289,1775382650670,-180.00096908,0.00014247,2]
[419793290,1775382650679,-1000.0,0.00014247,2]
[419793291,1775382650689,-1000.0,0.00014247,2]
[419793292,1775382650698,-1000.0,0.00014247,2]
[419793293,1775382650708,-1000.0,0.00014247,2]
[419793294,1775382650717,-1000.0,0.00014247,2]
[419793295,1775382650727,-1000.0,0.00014247,2]
[419793296,1775382650737,-1000.0,0.00014247,2]
[419793297,1775382650747,-1000.0,0.00014247,2]
[419793298,1775382650756,-1000.0,0.00014247,2]
[419793299,1775382650766,-1000.0,0.00014247,2]
[419793300,1775382650775,-189.74788311,0.00014247,2]
[419793301,1775382650784,-1000.0,0.00014247,2]
[419793302,1775382650793,-1000.0,0.00014247,2]
[419793303,1775382650802,-1000.0,0.00014247,2]
[419793304,1775382650811,-1000.0,0.00014247,2]
[419793305,1775382650820,-1000.0,0.00014247,2]
[419793306,1775382650830,-1000.0,0.00014247,2]
[419793307,1775382650838,-1000.0,0.00014247,2]
[419793308,1775382650848,-1000.0,0.00014247,2]
[419793309,1775382650858,-1000.0,0.00014247,2]
[419793310,1775382650867,-1000.0,0.00014247,2]
[419793311,1775382650876,-686.27125357,0.00014247,2]
[419793312,1775382650885,-500.99241895,0.00014247,2]
[419793313,1775382650895,-1000.0,0.00014247,2]
[419793314,1775382650904,-500.0,0.00014247,2]
[419793315,1775382650913,-1000.0,0.00014247,2]
[419793316,1775382650922,-1000.0,0.00014247,2]
[419793317,1775382650931,-1000.0,0.00014247,2]
[419793318,1775382650940,-790.32775663,0.00014247,2]
[419793319,1775382650950,-1712.93078312,0.00014259,2]
[419793320,1775382650959,-209.40437684,0.00014259,2]
[419793321,1775382650974,-200.0,0.00014259,2]
[419793322,1775382650984,-891.61887448,0.00014259,2]
[419793323,1775382650994,-21183.2758757,0.0001427,2]
[419793324,1775382651003,-421.15,0.0001429,2]
[419793325,1775382651012,-764.48,0.00014324,2]
[419793326,1775382651022,-1177.57,0.00014324,2]
[419793327,1775382651032,-6453.0,0.00014352,2]
[419793328,1775382651041,-444.28,0.00014361,2]
[419793329,1775382651051,-166.66,0.00014369,2]
[419793330,1775382651060,-9809.0432092,0.00014377,2]
[419793331,1775382651070,-5957.33,0.00014384,2]
[419793332,1775382651080,-168.61,0.00014395,2]
[419793333,1775382651089,-421.15,0.00014395,2]
[419793334,1775382651099,-508.0,0.00014397,3]
[419793335,1775382651108,-150.0,0.000144,2]
[419793336,1775382651118,-150.0,0.000144,2]
[419793337,1775382651127,-150.0,0.000144,2]
[419793338,1775382651137,-150.0,0.000144,2]
[419793339,1775382651146,-150.0,0.000144,2]
[419793340,1775382651156,-150.0,0.000144,2]
[419793341,1775382651165,-150.0,0.000144,2]
[419793342,1775382651175,-150.0,0.000144,2]
[419793343,1775382651184,-150.0,0.000144,2]
[419793344,1775382651194,-150.0,0.000144,2]
[419793345,1775382651204,-150.0,0.000144,2]
[419793346,1775382651214,-150.0,0.000144,2]
[419793347,1775382651224,-150.05716299,0.000144,2]
[419793348,1775382651235,-150.0,0.000144,2]
[419793349,1775382651246,-150.0,0.000144,2]
[419793350,1775382651256,-150.0,0.00014418,2]
[419793351,1775382651266,-150.0,0.00014421,2]
[419793352,1775382651276,-150.0,0.00014426,2]
[419793353,1775382651286,-150.0,0.00014429,2]
[419793354,1775382651295,-150.0,0.00014429,2]
[419793355,1775382651304,-552.12670035,0.0001443,2]
[419793356,1775382651314,-150.0,0.00014432,2]
[419793357,1775382651324,-150.0,0.00014436,2]
[419793358,1775382651333,-150.0,0.00014442,2]
[419793359,1775382651344,-150.0,0.00014452,2]
[419793360,1775382651354,-150.0,0.00014453,2]
[419793361,1775382651365,-150.0,0.00014454,2]
[419793362,1775382651375,-150.0,0.00014458,2]
[419793363,1775382651390,-150.0,0.00014458,2]
[419793364,1775382651400,-150.0,0.00014463,2]
[419793365,1775382651411,-150.0,0.00014464,2]
[419793366,1775382651422,-150.0,0.0001447,2]
[419793367,1775382651432,-150.0,0.00014472,2]
[419793368,1775382651442,-150.0,0.00014477,2]
[419793369,1775382651452,-150.0,0.00014484,2]
[419793370,1775382651462,-150.0,0.00014487,2]
[419793371,1775382651472,-150.0,0.00014487,2]
[419793372,1775382651487,-150.0,0.00014489,2]
[419793373,1775382651499,-150.0,0.0001449,2]
[419793374,1775382651511,-150.0,0.00014496,2]
[419793375,1775382651525,-421.15,0.000145,2]
[419793376,1775382651535,-150.0,0.00014503,2]
[419793377,1775382651546,-1619.684,0.00014504,2]
[419793378,1775382651557,-150.0,0.00014505,2]
[419793379,1775382651568,-150.0,0.00014507,2]
[419793380,1775382651578,-150.0,0.00014508,2]
[419793381,1775382651589,-150.0,0.00014516,2]
[419793382,1775382651600,-150.0,0.00014516,2]
[419793383,1775382651611,-150.0,0.00014526,2]
[419793384,1775382651622,-150.0,0.00014526,2]
[419793385,1775382651633,-150.0,0.00014528,2]
[419793386,1775382651644,-150.0,0.00014529,2]
[419793387,1775382651657,-150.0,0.00014539,2]
[419793388,1775382651668,-150.0,0.00014544,2]
[419793389,1775382651680,-150.0,0.00014545,2]
[419793390,1775382651693,-150.0,0.00014545,2]
[419793391,1775382651705,-150.0,0.00014547,2]
[419793392,1775382651717,-150.0,0.00014555,2]
[419793393,1775382651728,-150.0,0.0001456,2]
[419793394,1775382651738,-150.0,0.0001456,2]
[419793395,1775382651748,-150.0,0.00014562,2]
[419793396,1775382651758,-150.0,0.00014568,2]
[419793397,1775382651768,-370.52,0.00014569,2]
[419793398,1775382651778,-150.0,0.00014575,2]
[419793399,1775382651789,-150.0,0.00014575,2]
[419793400,1775382651800,-150.0,0.00014578,2]
[419793401,1775382651811,-150.0,0.0001458,2]
[419793402,1775382651822,-150.0,0.00014581,2]
[419793403,1775382651833,-1000.0,0.00014584,2]
[419793404,1775382651844,-11743.7453657,0.00014587,2]
[419793405,1775382651855,-150.0,0.00014589,2]
[419793406,1775382651865,-150.0,0.00014592,2]
[419793407,1775382651875,-150.0,0.00014598,2]
[419793408,1775382651886,-150.0,0.00014604,2]
[419793409,1775382651896,-150.0,0.00014604,2]
[419793410,1775382651907,-421.15,0.00014605,2]
[419793411,1775382651917,-150.0,0.00014606,2]
[419793412,1775382651928,-150.0,0.00014609,2]
[419793413,1775382651940,-150.0,0.00014611,2]
[419793414,1775382651951,-150.0,0.00014613,2]
[419793415,1775382651961,-150.0,0.00014616,2]
[419793416,1775382651972,-150.0,0.00014624,2]
[419793417,1775382651984,-150.0,0.00014632,2]
[419793418,1775382651995,-150.0,0.00014632,2]
[419793419,1775382652006,-150.0,0.00014633,2]
[419793420,1775382652016,-150.0,0.00014633,2]
[419793421,1775382652027,-150.0,0.00014634,2]
[419793422,1775382652037,-150.0,0.00014652,2]
[419793423,1775382652047,-150.0,0.00014653,2]
[419793424,1775382652058,-150.0,0.00014656,2]
[419793425,1775382652069,-1000.0,0.00014658,2]
[419793426,1775382652079,-150.0,0.00014658,2]
[419793427,1775382652089,-166.66,0.00014659,2]
[419793428,1775382652100,-150.0,0.00014662,2]
[419793429,1775382652110,-150.0,0.00014662,2]
[419793430,1775382652120,-150.0,0.00014667,2]
[419793431,1775382652131,-150.0,0.00014667,2]
[419793432,1775382652141,-150.0,0.00014667,2]
[419793433,1775382652151,-150.0,0.0001467,2]
[419793434,1775382652162,-150.0,0.00014674,2]
[419793435,1775382652172,-150.0,0.00014678,2]
[419793436,1775382652183,-150.0,0.00014684,2]
[419793437,1775382652194,-150.0,0.00014688,2]
[419793438,1775382652204,-150.0,0.00014688,2]
[419793439,1775382652216,-150.0,0.00014691,2]
[419793440,1775382652226,-150.0,0.00014691,2]
[419793441,1775382652237,-150.0,0.00014695,2]
[419793442,1775382652246,-150.0,0.00014706,2]
[419793443,1775382652256,-150.0,0.0001471,2]
[419793444,1775382652267,-421.17732607,0.0001471,2]
[419793445,1775382652277,-150.0,0.00014716,2]
[419793446,1775382652287,-150.0,0.0001472,2]
[419793447,1775382652296,-150.0,0.0001472,2]
[419793448,1775382652307,-150.0,0.0001472,2]
[419793449,1775382652316,-150.0,0.0001472,2]
[419793450,1775382652328,-150.0,0.00014724,2]
[419793451,1775382652339,-429.6676209,0.00014733,2]
[419793452,1775382652351,-150.0,0.00014735,2]
[419793453,1775382652361,-150.0,0.00014737,2]
[419793454,1775382652373,-150.0,0.00014742,2]
[419793455,1775382652384,-150.0,0.00014748,2]
[419793456,1775382652395,-150.0,0.00014749,2]
[419793457,1775382652406,-150.0,0.00014749,2]
[419793458,1775382652419,-150.0,0.00014752,2]
[419793459,1775382652430,-150.0,0.00014756,2]
[419793460,1775382652440,-150.0,0.00014758,2]
[419793461,1775382652451,-150.0,0.0001476,2]
[419793462,1775382652461,-150.0,0.00014761,2]
[419793463,1775382652472,-150.0,0.00014773,2]
[419793464,1775382652482,-150.0,0.00014778,2]
[419793465,1775382652493,-150.0,0.00014778,2]
[419793466,1775382652503,-150.0,0.00014778,2]
[419793467,1775382652515,-150.0,0.00014779,2]
[419793468,1775382652527,-150.0,0.00014784,2]
[419793469,1775382652538,-150.0,0.00014787,2]
[419793470,1775382652550,-1067.9,0.00014794,2]
[419793471,1775382652561,-1330.66,0.00014794,2]
[419793472,1775382652571,-519.47,0.00014794,2]
[419793473,1775382652581,-889.96,0.00014794,2]
[419793474,1775382652591,-952.5,0.00014794,2]
[419793475,1775382652602,-1227.692277,0.00014795,2]
[419793476,1775382652612,-953.31303788,0.00014795,2]
[419793477,1775382652622,-1515.96545288,0.00014795,2]
[419793478,1775382652632,-1500.0,0.00014795,2]
[419793479,1775382652653,-1500.0,0.00014795,2]
[419793480,1775382652668,-1500.0,0.00014795,2]
[419793481,1775382652680,-1500.0,0.00014795,2]
[419793482,1775382652692,-1500.0,0.00014795,2]
[419793483,1775382652705,-1500.0,0.00014795,2]
[419793484,1775382652716,-1500.0,0.00014795,2]
[419793485,1775382652729,-1500.0,0.00014795,2]
[419793486,1775382652740,-1500.0,0.00014795,2]
[419793487,1775382652751,-1500.0,0.00014795,2]
[419793488,1775382652762,-1500.0,0.00014795,2]
[419793489,1775382652772,-1500.0,0.00014795,2]
[419793490,1775382652784,-1500.0,0.00014795,2]
[419793491,1775382652795,-1500.0,0.00014795,2]
[419793492,1775382652807,-1002.83538283,0.00014795,2]
[419793493,1775382652818,-1000.0,0.00014795,2]
[419793494,1775382652829,-1500.0,0.00014795,2]
[419793495,1775382652840,-1500.0,0.00014795,2]
[419793496,1775382652851,-1500.0,0.00014795,2]
[419793497,1775382652863,-1500.0,0.00014795,2]
[419793498,1775382652874,-1500.0,0.00014795,2]
[419793499,1775382652885,-1500.0,0.00014795,2]
[419793500,1775382652896,-1500.0,0.00014795,2]
[419793501,1775382652906,-1500.0,0.00014795,2]
[419793502,1775382652918,-1500.0,0.00014795,2]
[419793503,1775382652929,-1500.0,0.00014795,2]
[419793504,1775382652940,-1500.0,0.00014795,2]
[419793505,1775382652952,-1500.0,0.00014795,2]
[419793506,1775382652963,-1500.0,0.00014795,2]
[419793507,1775382652974,-418.3764967,0.00014795,2]
[419793508,1775382652984,-1500.0,0.00014795,2]
[419793509,1775382652996,-553.41835149,0.00014795,2]
[419793510,1775382653007,-150.0,0.00014796,2]
[419793511,1775382653018,-150.0,0.000148,2]
[419793512,1775382653029,-150.0,0.000148,2]
[419793513,1775382653041,-150.0,0.00014807,2]
[419793514,1775382653053,-150.0,0.00014807,2]
[419793515,1775382653065,-1776.30922209,0.00014807,2]
[419793516,1775382653078,-217.15233878,0.00014807,2]
[419793517,1775382653089,-205.79985871,0.00014807,2]
[419793518,1775382653100,-924.60877284,0.00014807,2]
[419793519,1775382653110,-150.0,0.00014813,2]
[419793520,1775382653121,-150.0,0.00014813,2]
[419793521,1775382653131,-150.0,0.00014816,2]
[419793522,1775382653142,-150.0,0.00014817,2]
[419793523,1775382653153,-150.0,0.00014821,2]
[419793524,1775382653163,-150.0,0.00014827,2]
[419793525,1775382653174,-150.0,0.00014831,2]
[419793526,1775382653184,-150.0,0.00014836,2]
[419793527,1775382653195,-150.0,0.00014836,2]
[419793528,1775382653207,-150.0,0.00014839,2]
[419793529,1775382653217,-150.0,0.00014842,2]
[419793530,1775382653228,-150.0,0.00014844,2]
[419793531,1775382653239,-150.0,0.00014848,2]
[419793532,1775382653249,-150.0,0.00014849,2]
[419793533,1775382653261,-150.0,0.00014863,2]
[419793534,1775382653271,-150.0,0.00014865,2]
[419793535,1775382653283,-150.0,0.00014865,2]
[419793536,1775382653293,-150.0,0.00014865,2]
[419793537,1775382653304,-150.0,0.00014867,2]
[419793538,1775382653314,-150.0,0.0001488,2]
[419793539,1775382653325,-150.0,0.0001488,2]
[419793540,1775382653335,-150.0,0.00014884,2]
[419793541,1775382653345,-150.0,0.00014885,2]
[419793542,1775382653356,-150.0,0.00014887,2]
[419793543,1775382653366,-7210.01239016,0.00014888,2]
[419793544,1775382653378,-150.0,0.0001489,2]
[419793545,1775382653388,-150.0,0.00014895,2]
[419793546,1775382653398,-150.0,0.00014895,2]
[419793547,1775382653408,-150.0,0.00014903,2]
[419793548,1775382653419,-3000.0,0.00014904,2]
[419793549,1775382653430,-150.0,0.00014905,2]
[419793550,1775382653441,-150.0,0.00014912,2]
[419793551,1775382653452,-150.0,0.00014916,2]
[419793552,1775382653468,-150.0,0.00014921,2]
[419793553,1775382653479,-150.0,0.00014924,2]
[419793554,1775382653490,-150.0,0.00014924,2]
[419793555,1775382653501,-150.0,0.00014926,2]
[419793556,1775382653512,-150.0,0.00014933,2]
[419793557,1775382653523,-150.0,0.00014933,2]
[419793558,1775382653535,-150.0,0.00014933,2]
[419793559,1775382653546,-150.0,0.00014933,2]
[419793560,1775382653558,-150.0,0.00014939,2]
[419793561,1775382653569,-150.0,0.00014942,2]
[419793562,1775382653581,-2188.6933821,0.00014944,2]
[419793563,1775382653592,-150.0,0.00014944,2]
[419793564,1775382653604,-150.0,0.00014947,2]
[419793565,1775382653615,-166.66,0.0001495,2]
[419793566,1775382653626,-150.0,0.00014953,2]
[419793567,1775382653637,-150.0,0.00014953,2]
[419793568,1775382653647,-1253.32555579,0.00014953,2]
[419793569,1775382653659,-150.0,0.00014957,2]
[419793570,1775382653671,-150.0,0.00014957,2]
[419793571,1775382653682,-686.36317116,0.00014965,2]
[419793572,1775382653693,-150.0,0.00014968,2]
[419793573,1775382653705,-150.0,0.00014968,2]
[419793574,1775382653717,-150.0,0.00014975,2]
[419793575,1775382653728,-150.0,0.00014976,2]
[419793576,1775382653740,-150.0,0.00014982,2]
[419793577,1775382653751,-150.0,0.00014982,2]
[419793578,1775382653763,-150.0,0.00014987,2]
[419793579,1775382653776,-150.0,0.00014989,2]
[419793580,1775382654257,-150.0,0.00014993,2]
[419793581,1775382654267,-150.0,0.00014994,2]
[419793582,1775382654276,-300.0,0.00015,2]
[419793583,1775382654286,-150.0,0.00015008,2]
[419793584,1775382654295,-150.0,0.00015011,2]
[419793585,1775382654305,-48056.14856536,0.00015011,2]
[419793586,1775382654315,-150.0,0.00015011,2]
[419793587,1775382654324,-150.0,0.00015011,2]
[419793588,1775382654334,-150.0,0.00015011,2]
[419793589,1775382654343,-500.0,0.00015012,2]
[419793590,1775382654352,-2000.0,0.00015015,2]
[419793591,1775382654362,-500.0,0.00015015,2]
[419793592,1775382654372,-150.0,0.00015019,2]
[419793593,1775382654382,-150.0,0.00015022,2]
[419793594,1775382654393,-150.0,0.00015026,2]
[419793595,1775382654404,-150.0,0.00015029,2]
[419793596,1775382654414,-150.0,0.00015032,2]
[419793597,1775382654425,-500.0,0.00015032,2]
[419793598,1775382654434,-921.54,0.00015032,2]
[419793599,1775382654444,-1647.17,0.00015032,2]
[419793600,1775382654453,-1289.11,0.00015032,2]
[419793601,1775382654462,-1572.0,0.0001504,2]
[419793602,1775382654472,-150.0,0.0001504,2]
[419793603,1775382654482,-150.0,0.0001504,2]
[419793604,1775382654491,-150.0,0.0001504,2]
[419793605,1775382654500,-150.0,0.0001504,2]
[419793606,1775382654510,-150.0,0.00015045,2]
[419793607,1775382654519,-871.95012592,0.00015047,2]
[419793608,1775382654529,-8422.99193755,0.00015047,2]
[419793609,1775382654539,-150.0,0.00015047,2]
[419793610,1775382654549,-150.0,0.00015053,2]
[419793611,1775382654559,-150.0,0.00015065,2]
[419793612,1775382654568,-500.0,0.00015068,2]
[419793613,1775382654578,-686.68,0.00015068,2]
[419793614,1775382654588,-500.0,0.00015068,2]
[419793615,1775382654598,-5957.33,0.00015068,2]
[419793616,1775382654608,-800.0,0.00015068,2]
[419793617,1775382654617,-150.0,0.00015069,2]
[419793618,1775382654628,-150.0,0.00015069,2]
[419793619,1775382654637,-150.0,0.00015071,2]
[419793620,1775382654647,-1000.0,0.00015072,2]
[419793621,1775382654656,-150.0,0.00015072,2]
[419793622,1775382654666,-150.0,0.00015074,2]
[419793623,1775382654676,-1000.0,0.00015078,2]
[419793624,1775382654685,-150.0,0.00015083,2]
[419793625,1775382654695,-150.0,0.00015093,2]
[419793626,1775382654706,-150.0,0.00015095,2]
[419793627,1775382654716,-150.0,0.00015096,2]
[419793628,1775382654726,-150.0,0.00015097,2]
[419793629,1775382654737,-150.0,0.00015098,2]
[419793630,1775382654750,-150.0,0.00015098,2]
[419793631,1775382654760,-150.0,0.00015101,2]
[419793632,1775382654769,-150.0,0.00015104,2]
[419793633,1775382654779,-1067.9,0.00015108,2]
[419793634,1775382654788,-1330.66,0.00015108,2]
[419793635,1775382654798,-519.47,0.00015108,2]
[419793636,1775382654807,-889.96,0.00015108,2]
[419793637,1775382654816,-952.5,0.00015108,2]
[419793638,1775382654826,-150.0,0.00015111,2]
[419793639,1775382654835,-172.82578378,0.00015112,2]
[419793640,1775382654845,-150.0,0.00015116,2]
[419793641,1775382654855,-150.0,0.00015119,2]
[419793642,1775382654864,-536.6801648,0.0001512,2]
[419793643,1775382654874,-498.3967598,0.0001512,2]
[419793644,1775382654885,-150.0,0.00015123,2]
[419793645,1775382654895,-150.0,0.00015127,2]
[419793646,1775382654904,-150.0,0.00015127,2]
[419793647,1775382654914,-1052.848,0.00015132,2]
[419793648,1775382654924,-629.839,0.00015132,2]
[419793649,1775382654934,-3633.957,0.00015132,2]
[419793650,1775382654944,-1267.843,0.00015132,2]
[419793651,1775382654954,-1047.087,0.00015132,2]
[419793652,1775382654964,-1229.18,0.00015132,2]
[419793653,1775382654975,-2471.0,0.00015132,2]
[419793654,1775382654984,-3770.0,0.00015132,2]
[419793655,1775382654994,-150.0,0.00015136,2]
[419793656,1775382655004,-150.0,0.00015137,2]
[419793657,1775382655015,-150.0,0.00015137,2]
[419793658,1775382655024,-150.0,0.00015147,2]
[419793659,1775382655033,-150.0,0.00015148,2]
[419793660,1775382655043,-150.0,0.00015155,2]
[419793661,1775382655055,-150.0,0.00015156,2]
[419793662,1775382655065,-150.0,0.00015156,2]
[419793663,1775382655075,-150.0,0.00015158,2]
[419793664,1775382655087,-249.63132577,0.00015159,2]
[419793665,1775382655098,-150.0,0.00015165,2]
[419793666,1775382655108,-150.0,0.00015168,2]
[419793667,1775382655119,-150.0,0.00015173,2]
[419793668,1775382655130,-150.0,0.00015174,2]
[419793669,1775382655141,-1800.0,0.00015178,2]
[419793670,1775382655153,-150.0,0.00015179,2]
[419793671,1775382655165,-151.2,0.0001518,2]
[419793672,1775382655175,-150.0,0.00015185,2]
[419793673,1775382655185,-150.0,0.00015185,2]
[419793674,1775382655195,-150.0,0.00015191,2]
[419793675,1775382655206,-263.08449849,0.00015193,2]
[419793676,1775382655215,-322.47111,0.000152,2]
[419793677,1775382655225,-7151.76505981,0.000152,2]
[419793678,1775382655234,-5000.0,0.000152,2]
[419793679,1775382655243,-5000.0,0.000152,2]
[419793680,1775382655255,-5000.0,0.000152,2]
[419793681,1775382655265,-150.0,0.000152,2]
[419793682,1775382655276,-150.0,0.000152,2]
[419793683,1775382655286,-150.0,0.000152,2]
[419793684,1775382655296,-150.0,0.000152,2]
[419793685,1775382655305,-150.0,0.000152,2]
[419793686,1775382655315,-150.0,0.000152,2]
[419793687,1775382655324,-150.0,0.000152,2]
[419793688,1775382655333,-150.0,0.000152,2]
[419793689,1775382655343,-150.0,0.000152,2]
[419793690,1775382655352,-961.5668365,0.00015205,2]
[419793691,1775382655362,-10000.0,0.00015205,2]
[419793692,1775382655371,-150.0,0.00015209,2]
[419793693,1775382655381,-150.0,0.00015215,2]
[419793694,1775382655391,-150.0,0.00015215,2]
[419793695,1775382655400,-150.0,0.00015221,2]
[419793696,1775382655410,-150.0,0.00015226,2]